bitfinex/quotes_SOLUSD_20251202
["timestamp","ask_amount","ask_price","bid_price","bid_amount"]
[1764640148854,12.23776326,127.31,127.28,7.85643142]
[1764640149355,12.91776326,127.31,127.28,8.56643142]
[1764640150151,4.23776326,127.3,127.24,19.64706411]
[1764640150332,3.55776326,127.29,127.25,0.71]
[1764640150535,8.68,127.28,127.25,0.71]
[1764640152436,8.68,127.28,127.25,8.568381]
[1764640152958,8.68,127.28,127.25,7.858381]
[1764640153136,8.68,127.28,127.26,0.69]
[1764640155155,2.97964109,127.27,127.23,1e-08]
[1764640155357,2.27964109,127.26,127.23,0.69000001]
[1764640155540,8.68,127.25,127.23,1e-08]
[1764640155747,8.68,127.25,127.23,0.69000001]
[1764640155945,8.68,127.25,127.23,1e-08]
[1764640156863,10.95964109,127.25,127.23,1e-08]
[1764640157052,11.65964109,127.25,127.23,1e-08]
[1764640157364,19.51867494,127.25,127.23,1e-08]
[1764640158465,8.68,127.25,127.23,0.69000001]
[1764640159465,8.68,127.25,127.23,2.9696411]
[1764640159667,8.68,127.25,127.24,0.69]
[1764640160643,8.68,127.25,127.23,1e-08]
[1764640160856,16.5385697,127.25,127.23,0.69000001]
[1764640161165,16.5385697,127.25,127.23,1e-08]
[1764640162775,17.2385697,127.25,127.23,1e-08]
[1764640165567,16.5385697,127.25,127.23,1e-08]
[1764640165741,17.2385697,127.25,127.23,1e-08]
[1764640166344,19.51821079,127.25,127.23,1e-08]
[1764640169459,16.5385697,127.25,127.23,1e-08]
[1764640170169,17.2385697,127.25,127.23,1e-08]
[1764640171978,8.68,127.25,127.23,0.71000001]
[1764640172269,18.95948998,127.27,127.23,0.71000001]
[1764640172445,19.65948998,127.27,127.23,0.71000001]
[1764640173983,19.65948998,127.27,127.23,8.56967219]
[1764640174475,19.65948998,127.27,127.24,0.71]
[1764640175378,2.97964109,127.26,127.23,1e-08]
[1764640175757,2.27964109,127.26,127.24,0.71]
[1764640175954,10.27948998,127.27,127.24,0.71]
[1764640176158,8.68,127.25,127.24,0.71]
[1764640176365,8.68,127.25,127.23,0.71000001]
[1764640179377,18.81842924,127.25,127.23,1e-08]
[1764640179565,18.81842924,127.25,127.23,0.71000001]
[1764640179762,16.53878815,127.25,127.23,0.71000001]
[1764640180073,19.51842924,127.25,127.23,1e-08]
[1764640180879,18.81842924,127.25,127.23,1e-08]
[1764640181265,19.50842924,127.25,127.23,1e-08]
[1764640181775,16.53878815,127.25,127.23,0.70000001]
[1764640188866,16.53878815,127.25,127.23,0.70000001]
[1764640189489,17.22878815,127.25,127.23,1e-08]
[1764640189991,16.53878815,127.25,127.23,0.70000001]
[1764640190491,18.81842924,127.25,127.23,0.70000001]
[1764640190871,16.53878815,127.25,127.23,0.70000001]
[1764640191588,8.68,127.28,127.24,2.27964109]
[1764640191887,8.68,127.28,127.24,2.1]
[1764640191888,2.27964109,127.27,127.24,2.1]
[1764640192069,8.68,127.26,127.25,0.7]
[1764640196202,8.68,127.26,127.24,2.1]
[1764640196500,8.68,127.26,127.24,10.65911082]
[1764640197391,8.68,127.26,127.25,0.7]
[1764640200996,7.85634861,127.29,127.25,12.93818725]
[1764640201198,7.85571707,127.3,127.27,2.27964109]
[1764640201496,7.85571707,127.3,127.23,2.10000001]
[1764640201497,0.83216157,127.29,127.26,0.7]
[1764640201687,8.68,127.28,127.26,0.7]
[1764640201991,16.53694269,127.28,127.26,0.7]
[1764640203979,19.50658378,127.28,127.25,0.7]
[1764640204282,18.81658378,127.28,127.24,7.85894336]
[1764640204489,16.53694269,127.28,127.26,0.7]
[1764640205793,17.22694269,127.28,127.24,8.55894336]
[1764640206101,19.50658378,127.28,127.24,8.55894336]
[1764640206304,19.50658378,127.28,127.25,0.7]
[1764640207805,16.53694269,127.28,127.25,0.7]
[1764640208102,17.22694269,127.28,127.25,0.7]
[1764640208407,16.53694269,127.28,127.25,0.7]
[1764640208783,16.53694269,127.28,127.25,2.97964109]
[1764640208982,16.53694269,127.28,127.26,0.7]
[1764640209299,8.68,127.28,127.26,0.7]
[1764640209503,10.13439552,127.32,127.27,2.27964109]
[1764640209704,8.68,127.31,127.27,2.27964109]
[1764640209900,8.68,127.31,127.29,2.27964109]
[1764640210102,8.68,127.31,127.28,0.7]
[1764640210280,10.95964109,127.31,127.27,0.7]
[1764640210483,8.68,127.31,127.27,8.55709996]
[1764640210795,17.22524892,127.31,127.27,8.55709996]
[1764640211094,9.37,127.31,127.28,0.7]
[1764640211800,19.49448465,127.31,127.27,0.7]
[1764640212202,11.63964109,127.31,127.27,0.7]
[1764640212506,9.36,127.31,127.27,0.7]
[1764640212803,18.81485099,127.31,127.27,8.5571687]
[1764640213307,2.27964109,127.29,127.25,8.55803211]
[1764640213607,8.68,127.28,127.25,0.7]
[1764640213906,9.36,127.28,127.25,0.7]
[1764640214405,12.92271919,127.28,127.25,0.7]
[1764640214803,8.68,127.28,127.25,0.7]
[1764640215000,8.68,127.28,127.25,8.55853545]
[1764640216079,4.24271919,127.27,127.23,0.70000001]
[1764640216282,20.7794247,127.28,127.24,0.7]
[1764640216484,8.68,127.28,127.24,0.7]
[1764640216685,20.77944779,127.28,127.24,0.7]
[1764640217087,20.77944779,127.28,127.24,8.55911778]
[1764640218004,0.68,127.27,127.24,0.7]
[1764640218192,20.09944779,127.28,127.24,0.7]
[1764640218392,20.77944779,127.28,127.24,0.7]
[1764640219509,3.70488076,127.27,127.23,1e-08]
[1764640219712,4.38488076,127.27,127.23,0.70000001]
[1764640220017,4.38488076,127.27,127.24,0.7]
[1764640220795,0.82216157,127.27,127.24,0.7]
[1764640221301,8.68,127.26,127.24,0.7]
[1764640223713,9.36,127.26,127.23,0.70000001]
[1764640223899,9.36,127.26,127.23,1e-08]
[1764640223900,4.24271919,127.25,127.23,1e-08]
[1764640224301,4.38488076,127.24,127.23,1e-08]
[1764640224715,20.69374476,127.24,127.23,1e-08]
[1764640225219,28.55290854,127.24,127.23,1e-08]
[1764640229522,24.31018935,127.24,127.23,1e-08]
[1764640230903,27.87290854,127.24,127.23,1e-08]
[1764640231400,37.26290854,127.24,127.23,1e-08]
[1764640234718,46.07285346,127.24,127.23,1e-08]
[1764640236014,37.26290854,127.24,127.23,1e-08]
[1764640236209,36.55290854,127.24,127.23,1e-08]
[1764640236529,37.26290854,127.24,127.23,1e-08]
[1764640238831,25.13102557,127.24,127.23,1e-08]
[1764640239014,3.56271919,127.25,127.23,1e-08]
[1764640239220,12.24271919,127.24,127.23,1e-08]
[1764640239417,13.09488076,127.24,127.23,1e-08]
[1764640240921,20.95404454,127.24,127.23,1e-08]
[1764640242239,20.24404454,127.24,127.23,1e-08]
[1764640242917,20.24404454,127.24,127.19,11.5244565]
[1764640242918,0.83216157,127.23,127.19,0.1]
[1764640243114,23.57646395,127.2,127.19,0.1]
[1764640243416,28.69374476,127.2,127.19,0.1]
[1764640243624,38.19368968,127.2,127.19,0.1]
[1764640243839,28.69374476,127.2,127.19,0.1]
[1764640244016,29.38374476,127.2,127.19,0.1]
[1764640244216,46.0553249,127.2,127.19,0.1]
[1764640245138,29.7464609,127.2,127.19,0.1]
[1764640245322,33.30918009,127.2,127.19,0.1]
[1764640245525,29.7464609,127.2,127.19,0.1]
[1764640246035,108.30918009,127.2,127.19,1e-08]
[1764640246337,83.95210649,127.17,127.16,1e-08]
[1764640246555,21.19482568,127.17,127.16,1e-08]
[1764640246710,21.88482568,127.17,127.16,1e-08]
[1764640247915,104.74831549,127.17,127.16,1e-08]
[1764640248430,29.74831549,127.17,127.16,1e-08]
[1764640248739,46.05717949,127.17,127.16,1e-08]
[1764640249041,45.91501792,127.17,127.16,1e-08]
[1764640249221,46.05717949,127.17,127.16,1e-08]
[1764640251624,45.36717949,127.17,127.16,1e-08]
[1764640251843,46.05717949,127.17,127.16,1e-08]
[1764640252026,24.31451538,127.17,127.16,1e-08]
[1764640252342,36.55723457,127.17,127.16,1e-08]
[1764640252718,16.308864,127.13,127.11,0.1]
[1764640252930,12.38488076,127.12,127.11,0.1]
[1764640253126,12.38488076,127.12,127.11,0.8]
[1764640253339,8.82216157,127.12,127.11,0.8]
[1764640254420,12.38488076,127.12,127.11,0.8]
[1764640254744,20.25146351,127.12,127.11,0.8]
[1764640255715,20.25146351,127.12,127.11,0.1]
[1764640257041,20.94146351,127.12,127.11,0.1]
[1764640257243,16.308864,127.08,127.07,0.7]
[1764640257422,28.71374476,127.08,127.07,0.7]
[1764640257617,12.40488076,127.08,127.07,0.7]
[1764640258637,3.56271919,127.08,127.04,7.8714595]
[1764640258954,8.7,127.08,127.07,0.7]
[1764640259322,12.95271919,127.08,127.04,0.7]
[1764640259527,3.56271919,127.06,127.05,0.7]
[1764640259727,12.26271919,127.06,127.05,0.7]
[1764640260545,12.26271919,127.06,127.05,0.2]
[1764640261049,8.7,127.06,127.05,8.07091696]
[1764640261427,11.4308476,127.1,127.05,8.07091696]
[1764640261626,20.1308476,127.1,127.05,7.87091696]
[1764640261850,20.1308476,127.1,127.05,31.11092855]
[1764640261851,8.7,127.1,127.05,31.11092855]
[1764640262346,8.7,127.1,127.05,33.21092855]
[1764640262533,8.7,127.1,127.07,7.86967813]
[1764640262929,8.7,127.1,127.08,0.7]
[1764640263341,8.7,127.12,127.08,0.7]
[1764640263529,8.7,127.12,127.08,0.2]
[1764640264550,12.26271919,127.12,127.09,7.86843968]
[1764640264954,8.7,127.12,127.09,7.86843968]
[1764640265557,8.7,127.12,127.1,0.7]
[1764640265958,20.12950843,127.12,127.08,7.86887335]
[1764640266162,20.12950843,127.12,127.09,0.7]
[1764640266940,3.56271919,127.11,127.08,8.56887335]
[1764640267261,20.12950843,127.12,127.09,0.7]
[1764640268140,20.81950843,127.12,127.09,0.7]
[1764640268657,20.12950843,127.12,127.09,0.7]
[1764640269097,8.7,127.12,127.09,8.56791238]
[1764640269247,8.7,127.12,127.1,0.7]
[1764640269453,17.14102557,127.2,127.11,3.56271919]
[1764640269658,3.56271919,127.19,127.13,3.56271919]
[1764640269859,3.56271919,127.18,127.13,3.56271919]
[1764640270048,3.56271919,127.18,127.14,0.7]
[1764640270242,0.69,127.18,127.14,0.7]
[1764640270458,0.69,127.18,127.09,36.34895652]
[1764640270459,3.56271919,127.17,127.09,75.69115496]
[1764640270660,3.56271919,127.17,127.12,0.7]
[1764640270661,3.56271919,127.15,127.12,0.7]
[1764640271159,11.42748918,127.15,127.12,0.7]
[1764640271464,20.12684539,127.16,127.12,8.56656342]
[1764640271665,20.84684539,127.16,127.12,8.56656342]
[1764640273747,20.84684539,127.16,127.13,0.68]
[1764640274865,11.42684539,127.16,127.13,0.68]
[1764640275054,8.7,127.15,127.13,0.68]
[1764640275363,20.42099147,127.19,127.14,3.56271919]
[1764640275567,9.42,127.19,127.14,5.66271919]
[1764640275867,12.98271919,127.19,127.15,0.68]
[1764640276445,9.42,127.19,127.15,0.68]
[1764640276968,11.70346731,127.19,127.15,0.68]
[1764640277263,19.56630763,127.19,127.15,0.68]
[1764640278474,3.14562888,127.18,127.15,0.68]
[1764640279367,8.7,127.19,127.15,12.92812374]
[1764640279565,8.57996984,127.23,127.17,2.28346731]
[1764640279758,2.28346731,127.21,127.16,2.96346731]
[1764640280163,3.00346731,127.21,127.17,0.68]
[1764640280847,8.84216157,127.22,127.17,10.82688913]
[1764640280848,16.70270909,127.22,127.17,10.82688913]
[1764640281064,16.70270909,127.22,127.18,2.28346731]
[1764640281271,8.7,127.22,127.18,2.96346731]
[1764640281483,8.7,127.22,127.19,0.68]
[1764640281955,9.42,127.22,127.19,0.68]
[1764640282150,8.7,127.22,127.19,0.68]
[1764640282355,8.7,127.22,127.19,8.54213573]
[1764640283457,8.7,127.22,127.2,0.68]
[1764640284479,8.7,127.22,127.2,8.54155174]
[1764640284656,9.42,127.22,127.2,7.86155174]
[1764640284860,9.42,127.22,127.19,7.8622195]
[1764640285061,9.42,127.22,127.19,8.5422195]
[1764640286282,8.7,127.22,127.19,8.5422195]
[1764640286480,18.84447282,127.22,127.15,19.66075137]
[1764640286783,0.72,127.21,127.17,2.28346731]
[1764640286990,19.56447282,127.22,127.16,0.68]
[1764640287187,19.56447282,127.22,127.17,2.28346731]
[1764640287372,8.7,127.22,127.19,2.28346731]
[1764640287686,8.7,127.22,127.2,2.28346731]
[1764640288280,8.7,127.22,127.2,2.96346731]
[1764640288670,8.7,127.22,127.21,0.68]
[1764640289479,11.70346731,127.22,127.17,2.46346731]
[1764640289680,11.70346731,127.22,127.17,0.18]
[1764640289681,3.00346731,127.21,127.17,0.18]
[1764640289886,3.00346731,127.21,127.16,29.80784604]
[1764640290270,0.68,127.2,127.16,29.80784604]
[1764640290455,0.68,127.2,127.16,10.14757552]
[1764640290660,10.82534528,127.2,127.16,7.86410821]
[1764640291601,10.82534528,127.2,127.16,8.41410821]
[1764640292380,8.7,127.19,127.16,7.91410821]
[1764640292899,16.56231105,127.19,127.16,7.91410821]
[1764640293102,0.68,127.18,127.16,7.36410821]
[1764640293304,17.24231105,127.19,127.16,7.36410821]
[1764640293671,19.52577836,127.19,127.15,10.69803945]
[1764640294488,11.66346731,127.19,127.16,0.55]
[1764640294676,9.38,127.19,127.16,0.55]
[1764640294881,8.7,127.19,127.16,2.83346731]
[1764640295086,8.7,127.19,127.17,7.36348981]
[1764640295688,9.38,127.19,127.15,7.86415291]
[1764640295893,9.38,127.19,127.15,10.69762022]
[1764640296305,9.38,127.19,127.16,0.55]
[1764640296695,9.38,127.19,127.15,10.69762022]
[1764640297204,17.24228788,127.19,127.15,10.69762022]
[1764640298579,19.52575519,127.19,127.15,0.55]
[1764640298794,19.52575519,127.19,127.15,8.41464717]
[1764640299379,17.24228788,127.19,127.15,8.41464717]
[1764640299578,19.52575519,127.19,127.15,0.55]
[1764640299805,19.52575519,127.19,127.15,8.41469476]
[1764640300612,2.96346731,127.18,127.15,7.86469476]
[1764640301284,10.82640683,127.18,127.15,7.86469476]
[1764640301480,8.54293952,127.18,127.15,7.86469476]
[1764640301791,17.21240761,127.19,127.15,8.41469476]
[1764640303112,16.56240761,127.19,127.15,10.41469476]
[1764640303482,0.65,127.18,127.15,10.41469476]
[1764640303802,17.21240761,127.19,127.15,10.41469476]
[1764640304486,0.65,127.18,127.15,10.41469476]
[1764640305207,2.28346731,127.17,127.14,7.86505963]
[1764640305582,0.65,127.17,127.14,7.86505963]
[1764640305782,0.65,127.17,127.14,8.41505963]
[1764640307788,8.5130224,127.18,127.14,10.69852694]
[1764640308391,0.65,127.17,127.14,8.41505963]
[1764640308712,0.65,127.17,127.14,7.86505963]
[1764640309080,0.65,127.17,127.14,10.41505963]
[1764640310595,18.84618796,127.19,127.14,12.69852694]
[1764640310911,0.65,127.17,127.14,2.55]
[1764640311707,2.28346731,127.18,127.14,2.55]
[1764640311903,10.14672751,127.18,127.14,10.41525583]
[1764640312107,0.65,127.17,127.14,10.41525583]
[1764640312407,0.65,127.17,127.14,2.55]
[1764640312907,0.65,127.17,127.14,2.0]
[1764640313214,0.65,127.17,127.14,9.86524602]
[1764640314192,8.51377131,127.17,127.14,2.0]
[1764640314806,0.65,127.16,127.14,2.0]
[1764640315007,0.65,127.16,127.13,12.14921014]
[1764640315190,0.65,127.16,127.13,12.69921014]
[1764640316511,0.65,127.16,127.1,2.0]
[1764640316512,2.28346731,127.15,127.1,2.0]
[1764640316691,2.28346731,127.13,127.1,2.0]
[1764640317020,10.98346731,127.13,127.1,2.0]
[1764640317216,0.65,127.12,127.1,2.0]
[1764640318717,2.93346731,127.12,127.1,2.0]
[1764640318921,2.93346731,127.12,127.08,7.86891131]
[1764640319090,0.65,127.11,127.08,9.86891131]
[1764640320816,0.65,127.13,127.09,2.83346731]
[1764640320992,0.65,127.12,127.1,2.28346731]
[1764640321189,0.65,127.12,127.09,2.28346731]
[1764640321809,0.65,127.12,127.09,2.83346731]
[1764640322012,9.35,127.13,127.1,10.15128792]
[1764640322217,8.7,127.13,127.1,10.15128792]
[1764640322386,0.65,127.12,127.1,7.86782061]
[1764640323010,0.65,127.12,127.09,7.86819872]
[1764640323311,2.93346731,127.12,127.09,7.86819872]
[1764640323714,0.65,127.11,127.09,7.86819872]
[1764640323907,0.65,127.11,127.08,7.86905886]
[1764640324093,0.65,127.11,127.08,10.15252617]
[1764640324296,0.65,127.11,127.08,7.86905886]
[1764640324491,8.7,127.13,127.09,0.55]
[1764640324696,0.65,127.12,127.09,2.28346731]
[1764640325303,0.65,127.12,127.08,8.41905886]
[1764640325607,0.65,127.12,127.08,10.70252617]
[1764640326319,0.65,127.12,127.08,30.37517332]
[1764640326496,8.51665125,127.12,127.08,7.86905886]
[1764640326697,10.80011856,127.12,127.08,7.86905886]
[1764640326909,0.65,127.11,127.08,7.86905886]
[1764640327396,0.65,127.11,127.08,8.41905886]
[1764640327598,0.65,127.11,127.08,10.15252617]
[1764640327918,0.65,127.11,127.08,7.86905886]
[1764640328112,7.86665125,127.12,127.09,0.55]
[1764640329107,8.51665125,127.12,127.09,0.55]
[1764640330623,8.51665125,127.12,127.08,12.15252617]
[1764640330917,18.84972445,127.13,127.09,0.55]
[1764640331114,0.65,127.12,127.09,0.55]
[1764640331704,0.65,127.12,127.08,12.70252617]
[1764640331901,19.26233131,127.15,127.1,2.28346731]
[1764640332226,19.65892857,127.17,127.12,10.15005006]
[1764640332227,0.67,127.16,127.12,10.15005006]
[1764640332605,0.67,127.16,127.12,10.70005006]
[1764640333006,0.67,127.16,127.12,10.15005006]
[1764640333410,0.67,127.16,127.11,7.86699976]
[1764640333411,2.28346731,127.15,127.11,7.86699976]
[1764640333604,9.37,127.14,127.11,7.86699976]
[1764640335506,8.7,127.14,127.11,2.83346731]
[1764640335905,8.7,127.14,127.11,0.55]
[1764640336526,8.7,127.14,127.11,4.1194125]
[1764640337907,8.7,127.14,127.12,7.86658275]
[1764640338525,9.37,127.14,127.12,7.86658275]
[1764640338832,8.7,127.14,127.12,7.86658275]
[1764640339838,8.7,127.14,127.12,11.43599525]
[1764640341423,8.7,127.14,127.12,27.53303964]
[1764640341826,8.7,127.14,127.12,7.86658275]
[1764640342032,9.37,127.14,127.12,7.86658275]
[1764640342742,8.7,127.14,127.12,7.86658275]
[1764640343819,0.67,127.13,127.12,7.86658275]
[1764640344167,9.37,127.14,127.12,7.86658275]
[1764640344552,8.7,127.14,127.12,7.86658275]
[1764640344915,9.37,127.14,127.12,7.86658275]
[1764640349338,8.7,127.14,127.12,7.86658275]
[1764640350738,9.35,127.14,127.12,7.86658275]
[1764640355939,9.35,127.14,127.11,10.41711694]
[1764640360948,0.65,127.13,127.11,9.86711694]
[1764640364649,0.65,127.13,127.1,2.0]
[1764640364823,12.08551658,127.13,127.1,2.0]
[1764640365263,0.72,127.12,127.1,2.0]
[1764640365553,0.72,127.12,127.09,7.8679782]
[1764640365754,0.72,127.12,127.09,8.4179782]
[1764640366055,0.72,127.12,127.09,7.8679782]
[1764640366364,0.72,127.12,127.07,27.54260182]
[1764640366365,8.7,127.11,127.07,27.54260182]
[1764640366526,8.7,127.11,127.07,28.09260182]
[1764640366728,0.72,127.1,127.07,28.09260182]
[1764640367037,0.72,127.1,127.07,31.66201432]
[1764640367939,0.72,127.1,127.07,31.11201432]
[1764640368347,0.72,127.1,127.07,27.54260182]
[1764640369848,8.7,127.11,127.08,0.55]
[1764640370157,8.7,127.12,127.09,3.5694125]
[1764640370452,8.7,127.12,127.1,0.55]
[1764640370668,8.7,127.12,127.09,4.1194125]
[1764640370669,9.42,127.12,127.09,4.1194125]
[1764640371157,0.72,127.15,127.11,3.5694125]
[1764640371328,9.42,127.15,127.11,3.5694125]
[1764640371530,9.42,127.15,127.12,7.86658275]
[1764640371734,0.72,127.14,127.12,7.86658275]
[1764640374443,0.72,127.14,127.12,9.86658275]
[1764640377559,0.72,127.14,127.12,2.0]
[1764640379368,8.7,127.15,127.12,13.43597633]
[1764640379545,9.42,127.15,127.12,30.08302072]
[1764640380049,9.42,127.15,127.12,29.53302072]
[1764640380856,0.72,127.14,127.12,29.53302072]
[1764640384069,9.42,127.15,127.12,29.53302072]
[1764640384242,0.72,127.14,127.12,29.53302072]
[1764640385648,9.42,127.15,127.12,29.53302072]
[1764640385844,9.42,127.15,127.12,30.08302072]
[1764640386877,9.42,127.15,127.12,33.65243322]
[1764640387190,8.7,127.15,127.12,33.65243322]
[1764640387348,0.72,127.19,127.14,3.5694125]
[1764640387550,0.72,127.18,127.14,2.0]
[1764640387766,3.5694125,127.17,127.14,2.0]
[1764640388170,0.72,127.16,127.14,2.0]
[1764640388474,0.72,127.16,127.13,7.86596397]
[1764640390062,0.72,127.16,127.13,11.43537647]
[1764640391269,0.72,127.16,127.13,31.1002864]
[1764640392275,0.72,127.16,127.13,27.5308739]
[1764640392474,11.4325814,127.18,127.13,27.5308739]
[1764640392475,0.71,127.18,127.14,4.1194125]
[1764640392653,8.7,127.19,127.14,4.1194125]
[1764640392850,0.71,127.17,127.14,6.1194125]
[1764640393062,0.71,127.18,127.15,3.5694125]
[1764640393377,0.71,127.18,127.15,4.1194125]
[1764640394389,0.71,127.22,127.17,31.09162685]
[1764640394585,0.71,127.22,127.18,3.5694125]
[1764640394760,8.68,127.24,127.19,3.5694125]
[1764640394964,0.71,127.23,127.19,3.5694125]
[1764640396283,0.71,127.23,127.2,7.86163522]
[1764640397598,0.71,127.24,127.2,31.63513577]
[1764640397882,0.71,127.24,127.21,4.1194125]
[1764640398193,0.2,127.25,127.23,3.5694125]
[1764640398490,0.2,127.25,127.24,2.27965923]
[1764640399154,0.2,127.25,127.24,2.82965923]
[1764640400457,0.2,127.25,127.24,10.68882301]
[1764640404285,0.2,127.25,127.24,12.68882301]
[1764640405685,0.2,127.25,127.24,12.13882301]
[1764640407091,0.2,127.25,127.24,9.85916378]
[1764640407285,0.2,127.25,127.24,12.13882301]
[1764640409992,0.2,127.25,127.24,12.03882301]
[1764640412963,0.2,127.25,127.24,9.75916378]
[1764640413166,0.91,127.25,127.22,9.760274]
[1764640413375,0.91,127.25,127.22,12.03993323]
[1764640413583,0.71,127.24,127.23,2.27965923]
[1764640414088,0.71,127.24,127.23,10.13944072]
[1764640414285,0.2,127.25,127.23,30.33889446]
[1764640414590,0.2,127.25,127.24,2.27965923]
[1764640416178,0.2,127.25,127.24,10.13882301]
[1764640416880,0.2,127.25,127.24,10.68882301]
[1764640418089,0.2,127.25,127.24,10.13882301]
[1764640418300,0.2,127.25,127.24,7.85916378]
[1764640418502,0.2,127.25,127.24,10.13882301]
[1764640418684,0.2,127.25,127.24,7.85916378]
[1764640418876,0.2,127.25,127.24,12.03882301]
[1764640419078,0.92,127.25,127.24,9.75916378]
[1764640419279,0.92,127.25,127.24,1.9]
[1764640420093,0.92,127.25,127.24,9.75916378]
[1764640422899,0.92,127.25,127.24,7.85916378]
[1764640423691,0.92,127.25,127.22,27.51061327]
[1764640423891,0.72,127.24,127.22,27.51061327]
[1764640424874,0.2,127.25,127.22,27.51061327]
[1764640424875,0.92,127.25,127.22,29.7902725]
[1764640425075,0.92,127.25,127.23,10.13911845]
[1764640427301,0.92,127.25,127.22,29.7902725]
[1764640428099,0.2,127.25,127.22,29.7902725]
[1764640428293,0.72,127.24,127.22,27.51061327]
[1764640428485,0.72,127.24,127.22,7.8603993]
[1764640428691,2.99965923,127.24,127.22,7.8603993]
[1764640429085,0.72,127.23,127.22,7.8603993]
[1764640429800,0.72,127.23,127.21,7.86101721]
[1764640433688,0.72,127.23,127.21,12.04067644]
[1764640434228,0.72,127.23,127.21,9.76101721]
[1764640440110,0.72,127.23,127.21,12.04067644]
[1764640440701,0.92,127.25,127.22,2.82965923]
[1764640440904,0.92,127.25,127.23,2.27965923]
[1764640441108,0.72,127.24,127.23,2.27965923]
[1764640441813,0.92,127.25,127.23,2.27965923]
[1764640442106,0.72,127.24,127.21,29.79321947]
[1764640442298,0.72,127.24,127.22,2.27965923]
[1764640442706,0.72,127.24,127.23,7.85978149]
[1764640444312,0.2,127.25,127.23,10.68944072]
[1764640444611,0.2,127.25,127.24,2.82965923]
[1764640444810,0.2,127.25,127.24,2.27965923]
[1764640445504,0.2,127.25,127.24,10.13882301]
[1764640448613,0.2,127.25,127.24,12.03882301]
[1764640452318,0.2,127.25,127.24,9.75916378]
[1764640452617,0.2,127.25,127.24,37.57768701]
[1764640452817,1e-08,127.25,127.24,46.38763193]
[1764640453701,1e-08,127.25,127.24,49.53686627]
[1764640457025,1e-08,127.25,127.24,42.48880076]
[1764640457225,1e-08,127.25,127.24,24.54800227]
[1764640457528,1e-08,127.25,127.24,33.22800227]
[1764640457727,1e-08,127.25,127.24,42.34663919]
[1764640457921,0.2,127.3,127.27,16.308864]
[1764640458128,0.86,127.3,127.29,2.27965923]
[1764640458320,0.86,127.3,127.29,10.1357359]
[1764640459825,0.66,127.29,127.27,9.75704935]
[1764640466134,0.2,127.3,127.28,11.41720464]
[1764640466330,0.86,127.3,127.29,3.56094836]
[1764640466842,0.86,127.3,127.28,32.95893938]
[1764640468836,0.2,127.3,127.28,32.95893938]
[1764640469038,0.86,127.3,127.28,32.95893938]
[1764640470335,0.66,127.29,127.28,32.95893938]
[1764640470515,0.86,127.3,127.28,32.95893938]
[1764640471013,0.66,127.29,127.28,32.95893938]
[1764640472039,0.2,127.3,127.28,32.95893938]
[1764640472334,0.86,127.3,127.29,3.56094836]
[1764640473240,0.86,127.3,127.28,32.95893938]
[1764640474541,0.68,127.29,127.28,32.95893938]
[1764640474718,0.88,127.3,127.28,32.95893938]
[1764640475345,0.88,127.3,127.28,32.85893938]
[1764640477847,0.68,127.29,127.28,29.29799102]
[1764640478147,0.68,127.29,127.28,1.79999999]
[1764640480123,4.24094836,127.29,127.28,1.79999999]
[1764640481349,20.77729677,127.29,127.26,1.79999999]
[1764640481550,4.25094836,127.28,127.26,1.79999999]
[1764640481863,0.69,127.28,127.26,1.79999999]
[1764640482023,0.69,127.27,127.26,1.79999999]
[1764640489546,0.69,127.27,127.25,1.79999999]
[1764640489547,12.10825958,127.27,127.25,1.79999999]
[1764640489850,12.24094836,127.26,127.21,21.45222824]
[1764640490036,3.56094836,127.25,127.21,21.45222824]